[Event "Titled Tuesday Blitz January 31 Early 2023"]
[White "Vestby-Ellingsen, Mads"]
[Black "Hasangatin, Ramil"]
[WhiteFideId "1520857"]
[BlackFideId "4122160"]
[WhiteElo "2387"]
[BlackElo "2457"]
[Result "0-1"]
[Round "11"]
[TimeControl "180+2"]
[Date "2023.01.31"]
[WhiteClock "0:00:02"]
[BlackClock "0:00:13"]

1. e4 {[%clk 0:03:00]}  d5 {[%clk 0:02:59]} 2. Nc3 {[%clk 0:02:59]}  Nf6 {[%clk 0:02:58]} 3. e5 {[%clk 0:02:55]}  d4 {[%clk 0:02:58]} 4. exf6 {[%clk 0:02:55]}  dxc3 {[%clk 0:02:59]} 5. fxg7 {[%clk 0:02:51]}  cxd2+ {[%clk 0:03:00]} 6. Qxd2 {[%clk 0:02:50]}  Qxd2+ {[%clk 0:02:59]} 7. Bxd2 {[%clk 0:02:50]}  Bxg7 {[%clk 0:03:00]} 8. O-O-O {[%clk 0:02:51]}  Nc6 {[%clk 0:03:01]} 9. Nf3 {[%clk 0:02:49]}  Bg4 {[%clk 0:03:00]} 10. Be2 {[%clk 0:02:42]}  O-O-O {[%clk 0:02:59]} 11. h3 {[%clk 0:02:37]}  Bh5 {[%clk 0:02:58]} 12. Rhe1 {[%clk 0:02:32]}  Rd7 {[%clk 0:02:57]} 13. g4 {[%clk 0:02:30]}  Bg6 {[%clk 0:02:56]} 14. Bc4 {[%clk 0:02:30]}  Rhd8 {[%clk 0:02:50]} 15. Be3 {[%clk 0:02:27]}  Bxb2+ {[%clk 0:02:47]} 16. Kxb2 {[%clk 0:02:25]}  Rxd1 {[%clk 0:02:46]} 17. Re2 {[%clk 0:02:26]}  R1d7 {[%clk 0:02:34]} 18. h4 {[%clk 0:02:20]}  h5 {[%clk 0:02:32]} 19. Ng5 {[%clk 0:02:13]}  Ne5 {[%clk 0:02:23]} 20. Bb3 {[%clk 0:02:08]}  Nxg4 {[%clk 0:02:22]} 21. Nxf7 {[%clk 0:02:04]}  Bxf7 {[%clk 0:02:21]} 22. Bxf7 {[%clk 0:02:04]}  Nxe3 {[%clk 0:02:20]} 23. Rxe3 {[%clk 0:02:05]}  Rd2 {[%clk 0:02:19]} 24. Bxh5 {[%clk 0:02:01]}  Rxf2 {[%clk 0:02:12]} 25. Bg4+ {[%clk 0:01:58]}  Kb8 {[%clk 0:02:11]} 26. Rxe7 {[%clk 0:01:59]}  a6 {[%clk 0:02:04]} 27. Re5 {[%clk 0:01:40]}  Rdd2 {[%clk 0:02:00]} 28. Bf5 {[%clk 0:01:40]}  Rfe2 {[%clk 0:01:54]} 29. Rc5 {[%clk 0:01:34]}  Rh2 {[%clk 0:01:37]} 30. Rc4 {[%clk 0:01:26]}  Rd6 {[%clk 0:01:29]} 31. Rg4 {[%clk 0:01:01]}  Rh6 {[%clk 0:01:27]} 32. Rg8+ {[%clk 0:01:00]}  Ka7 {[%clk 0:01:26]} 33. Rg7 {[%clk 0:00:59]}  Kb6 {[%clk 0:01:24]} 34. Rg8 {[%clk 0:00:53]}  R2xh4 {[%clk 0:01:22]} 35. Bd3 {[%clk 0:00:53]}  Rd6 {[%clk 0:01:17]} 36. Kb3 {[%clk 0:00:51]}  a5 {[%clk 0:01:15]} 37. a3 {[%clk 0:00:49]}  a4+ {[%clk 0:01:14]} 38. Kc3 {[%clk 0:00:48]}  Rc6+ {[%clk 0:01:13]} 39. Kb2 {[%clk 0:00:48]}  Rc5 {[%clk 0:01:10]} 40. Rg6+ {[%clk 0:00:37]}  c6 {[%clk 0:01:10]} 41. Rg8 {[%clk 0:00:37]}  Ka7 {[%clk 0:01:05]} 42. Rg7 {[%clk 0:00:35]}  Rd4 {[%clk 0:01:03]} 43. Rg8 {[%clk 0:00:34]}  Rd7 {[%clk 0:00:58]} 44. Rg6 {[%clk 0:00:32]}  b5 {[%clk 0:00:55]} 45. Rg8 {[%clk 0:00:30]}  Kb6 {[%clk 0:00:55]} 46. Rb8+ {[%clk 0:00:30]}  Rb7 {[%clk 0:00:55]} 47. Rh8 {[%clk 0:00:31]}  Re5 {[%clk 0:00:54]} 48. Rh6 {[%clk 0:00:29]}  Kc5 {[%clk 0:00:53]} 49. Kc3 {[%clk 0:00:27]}  Rd7 {[%clk 0:00:52]} 50. Rh8 {[%clk 0:00:22]}  Rd6 {[%clk 0:00:51]} 51. Rg8 {[%clk 0:00:21]}  Rh5 {[%clk 0:00:50]} 52. Rf8 {[%clk 0:00:20]}  Rh4 {[%clk 0:00:49]} 53. Rg8 {[%clk 0:00:18]}  Rf6 {[%clk 0:00:45]} 54. Re8 {[%clk 0:00:17]}  Rh3 {[%clk 0:00:43]} 55. Re5+ {[%clk 0:00:17]}  Kb6 {[%clk 0:00:43]} 56. Kb4 {[%clk 0:00:13]}  Rf4+ {[%clk 0:00:41]} 57. Kc3 {[%clk 0:00:13]}  Rc4+ {[%clk 0:00:41]} 58. Kb2 {[%clk 0:00:13]}  Rc5 {[%clk 0:00:41]} 59. Re8 {[%clk 0:00:12]}  Rd5 {[%clk 0:00:40]} 60. Rb8+ {[%clk 0:00:12]}  Kc7 {[%clk 0:00:39]} 61. Rg8 {[%clk 0:00:09]}  Rdxd3 {[%clk 0:00:39]} 62. cxd3 {[%clk 0:00:10]}  Rxd3 {[%clk 0:00:39]} 63. Rg5 {[%clk 0:00:10]}  Rb3+ {[%clk 0:00:39]} 64. Ka2 {[%clk 0:00:11]}  Kb6 {[%clk 0:00:39]} 65. Rf5 {[%clk 0:00:11]}  Rd3 {[%clk 0:00:38]} 66. Kb2 {[%clk 0:00:11]}  Rd2+ {[%clk 0:00:38]} 67. Kb1 {[%clk 0:00:11]}  Rd5 {[%clk 0:00:34]} 68. Rf4 {[%clk 0:00:09]}  c5 {[%clk 0:00:32]} 69. Rf6+ {[%clk 0:00:10]}  Ka5 {[%clk 0:00:32]} 70. Kb2 {[%clk 0:00:10]}  b4 {[%clk 0:00:31]} 71. axb4+ {[%clk 0:00:10]}  cxb4 {[%clk 0:00:32]} 72. Rf8 {[%clk 0:00:09]}  Rd2+ {[%clk 0:00:28]} 73. Kc1 {[%clk 0:00:09]}  Re2 {[%clk 0:00:28]} 74. Ra8+ {[%clk 0:00:06]}  Kb5 {[%clk 0:00:27]} 75. Rc8 {[%clk 0:00:03]}  a3 {[%clk 0:00:27]} 76. Kb1 {[%clk 0:00:04]}  Ka4 {[%clk 0:00:26]} 77. Rh8 {[%clk 0:00:03]}  Re3 {[%clk 0:00:18]} 78. Kc2 {[%clk 0:00:02]}  b3+ {[%clk 0:00:16]} 79. Kc1 {[%clk 0:00:02]}  b2+ {[%clk 0:00:14]} 80. Kc2 {[%clk 0:00:02]}  Re2+ {[%clk 0:00:14]} 81. Kd1 {[%clk 0:00:01]}  b1=Q+ {[%clk 0:00:12]} 82. Kxe2 {[%clk 0:00:01]}  Qb2+ {[%clk 0:00:12]} 83. Kd1 {[%clk 0:00:02]}  Qxh8 {[%clk 0:00:13]} 0-1


[Site "https://www.chess.com"]

[Event "Titled Tuesday Blitz January 31 Early 2023"]
[White "Khamdamova, Afruza"]
[Black "Starozhilov, Leonid"]
[WhiteFideId "14210444"]
[BlackFideId "14106752"]
[WhiteElo "2162"]
[BlackElo "2313"]
[Result "0-1"]
[Round "11"]
[TimeControl "180+2"]
[Date "2023.01.31"]
[WhiteClock "0:00:01"]
[BlackClock "0:00:07"]

1. e4 {[%clk 0:03:00]}  Nc6 {[%clk 0:02:54]} 2. d4 {[%clk 0:03:00]}  d6 {[%clk 0:02:55]} 3. Nf3 {[%clk 0:02:57]}  Nf6 {[%clk 0:02:55]} 4. Nc3 {[%clk 0:02:57]}  g6 {[%clk 0:02:52]} 5. Be3 {[%clk 0:02:42]}  Bg7 {[%clk 0:02:51]} 6. Qd2 {[%clk 0:02:42]}  Bg4 {[%clk 0:02:51]} 7. Be2 {[%clk 0:02:39]}  O-O {[%clk 0:02:50]} 8. O-O-O {[%clk 0:02:39]}  Bxf3 {[%clk 0:02:49]} 9. Bxf3 {[%clk 0:02:38]}  e5 {[%clk 0:02:50]} 10. d5 {[%clk 0:02:35]}  Nd4 {[%clk 0:02:50]} 11. Bxd4 {[%clk 0:02:30]}  exd4 {[%clk 0:02:50]} 12. Qxd4 {[%clk 0:02:30]}  Ng4 {[%clk 0:02:50]} 13. e5 {[%clk 0:02:10]}  Nxe5 {[%clk 0:02:42]} 14. Qf4 {[%clk 0:02:03]}  b5 {[%clk 0:02:30]} 15. Kb1 {[%clk 0:01:59]}  b4 {[%clk 0:02:25]} 16. Ne2 {[%clk 0:01:47]}  a5 {[%clk 0:02:20]} 17. h4 {[%clk 0:01:44]}  a4 {[%clk 0:02:07]} 18. h5 {[%clk 0:01:44]}  b3 {[%clk 0:01:49]} 19. cxb3 {[%clk 0:01:43]}  a3 {[%clk 0:01:50]} 20. Nd4 {[%clk 0:01:31]}  axb2 {[%clk 0:01:43]} 21. hxg6 {[%clk 0:01:31]}  hxg6 {[%clk 0:01:31]} 22. Qh2 {[%clk 0:01:26]}  Re8 {[%clk 0:01:30]} 23. Be4 {[%clk 0:01:11]}  Qf6 {[%clk 0:01:09]} 24. Bc2 {[%clk 0:00:29]}  Kf8 {[%clk 0:00:54]} 25. f4 {[%clk 0:00:28]}  Ng4 {[%clk 0:00:51]} 26. Qg3 {[%clk 0:00:14]}  Ne3 {[%clk 0:00:51]} 27. Rd2 {[%clk 0:00:12]}  Nxc2 {[%clk 0:00:22]} 28. Nxc2 {[%clk 0:00:11]}  Qf5 {[%clk 0:00:17]} 29. Qd3 {[%clk 0:00:07]}  Qxf4 {[%clk 0:00:12]} 30. Rf1 {[%clk 0:00:07]}  Qe4 {[%clk 0:00:12]} 31. Qxe4 {[%clk 0:00:03]}  Rxe4 {[%clk 0:00:11]} 32. Rdf2 {[%clk 0:00:04]}  f5 {[%clk 0:00:11]} 33. a4 {[%clk 0:00:04]}  Kg8 {[%clk 0:00:11]} 34. Na3 {[%clk 0:00:03]}  Re3 {[%clk 0:00:09]} 35. Ka2 {[%clk 0:00:02]}  Rae8 {[%clk 0:00:08]} 36. Rb1 {[%clk 0:00:02]}  R8e4 {[%clk 0:00:07]} 37. Nb5 {[%clk 0:00:01]}  Rb4 {[%clk 0:00:07]} 0-1


[Site "https://www.chess.com"]

[Event "Titled Tuesday Blitz January 31 Early 2023"]
[White "Ansh M Shah"]
[Black "Md, Imran"]
[WhiteFideId "25033379"]
[BlackFideId "25748580"]
[WhiteElo "2171"]
[BlackElo "2284"]
[Result "0-1"]
[Round "11"]
[TimeControl "180+2"]
[Date "2023.01.31"]
[WhiteClock "0:00:06"]
[BlackClock "0:01:14"]

1. d4 {[%clk 0:03:00]}  Nf6 {[%clk 0:02:59]} 2. c4 {[%clk 0:03:01]}  g6 {[%clk 0:02:57]} 3. h4 {[%clk 0:03:01]}  Bg7 {[%clk 0:02:50]} 4. Nc3 {[%clk 0:02:57]}  c5 {[%clk 0:02:48]} 5. d5 {[%clk 0:02:57]}  O-O {[%clk 0:02:47]} 6. e4 {[%clk 0:02:56]}  d6 {[%clk 0:02:47]} 7. Be2 {[%clk 0:02:55]}  h5 {[%clk 0:02:45]} 8. Nf3 {[%clk 0:02:54]}  e6 {[%clk 0:02:42]} 9. Bf4 {[%clk 0:02:53]}  exd5 {[%clk 0:02:39]} 10. exd5 {[%clk 0:02:54]}  Re8 {[%clk 0:02:36]} 11. O-O {[%clk 0:02:54]}  Ne4 {[%clk 0:02:24]} 12. Nxe4 {[%clk 0:02:41]}  Rxe4 {[%clk 0:02:25]} 13. Bg5 {[%clk 0:02:39]}  Qb6 {[%clk 0:02:25]} 14. Nd2 {[%clk 0:02:34]}  Re8 {[%clk 0:02:23]} 15. Qc2 {[%clk 0:02:30]}  Bf5 {[%clk 0:02:22]} 16. Bd3 {[%clk 0:02:30]}  Bxd3 {[%clk 0:02:18]} 17. Qxd3 {[%clk 0:02:31]}  Nd7 {[%clk 0:02:19]} 18. Ne4 {[%clk 0:02:24]}  f5 {[%clk 0:02:14]} 19. Nc3 {[%clk 0:02:07]}  Ne5 {[%clk 0:02:10]} 20. Qe2 {[%clk 0:01:59]}  Nf7 {[%clk 0:02:07]} 21. Qd3 {[%clk 0:01:51]}  Ne5 {[%clk 0:02:06]} 22. Qe2 {[%clk 0:01:51]}  Qb4 {[%clk 0:02:05]} 23. Nb5 {[%clk 0:01:47]}  Nxc4 {[%clk 0:02:02]} 24. Qd3 {[%clk 0:01:12]}  Qxb5 {[%clk 0:01:59]} 25. Bc1 {[%clk 0:01:04]}  Qa6 {[%clk 0:01:53]} 26. b3 {[%clk 0:01:00]}  Ne5 {[%clk 0:01:52]} 27. Qg3 {[%clk 0:00:59]}  Ng4 {[%clk 0:01:50]} 28. Bf4 {[%clk 0:00:53]}  Rad8 {[%clk 0:01:46]} 29. f3 {[%clk 0:00:53]}  Qd3 {[%clk 0:01:44]} 30. Rad1 {[%clk 0:00:46]}  Bd4+ {[%clk 0:01:28]} 31. Kh1 {[%clk 0:00:46]}  Nf2+ {[%clk 0:01:18]} 32. Kh2 {[%clk 0:00:44]}  Nxd1 {[%clk 0:01:18]} 33. Qxg6+ {[%clk 0:00:44]}  Bg7 {[%clk 0:01:19]} 34. Bh6 {[%clk 0:00:19]}  Qd4 {[%clk 0:01:16]} 35. Rxd1 {[%clk 0:00:17]}  Qf6 {[%clk 0:01:14]} 36. Bxg7 {[%clk 0:00:06]}  Qxg6 {[%clk 0:01:14]} 0-1


[Site "https://www.chess.com"]

[Event "Titled Tuesday Blitz January 31 Early 2023"]
[White "Kopczynski, Michal"]
[Black "Bruzon Batista, Lazaro"]
[WhiteFideId "1124200"]
[BlackFideId "3503739"]
[WhiteElo "2225"]
[BlackElo "2611"]
[Result "0-1"]
[Round "11"]
[TimeControl "180+2"]
[Date "2023.01.31"]
[WhiteClock "0:00:34"]
[BlackClock "0:01:17"]

1. e4 {[%clk 0:03:00]}  c5 {[%clk 0:02:55]} 2. d4 {[%clk 0:03:01]}  cxd4 {[%clk 0:02:53]} 3. c3 {[%clk 0:03:01]}  dxc3 {[%clk 0:02:53]} 4. Nxc3 {[%clk 0:03:02]}  Nc6 {[%clk 0:02:52]} 5. f4 {[%clk 0:03:03]}  e6 {[%clk 0:02:51]} 6. Nf3 {[%clk 0:03:03]}  a6 {[%clk 0:02:51]} 7. Bd3 {[%clk 0:03:04]}  Bc5 {[%clk 0:02:46]} 8. Bd2 {[%clk 0:03:01]}  Nge7 {[%clk 0:02:42]} 9. Qe2 {[%clk 0:03:02]}  d6 {[%clk 0:02:34]} 10. O-O-O {[%clk 0:03:01]}  b5 {[%clk 0:02:34]} 11. Kb1 {[%clk 0:02:58]}  Bb7 {[%clk 0:02:34]} 12. e5 {[%clk 0:02:55]}  d5 {[%clk 0:02:34]} 13. f5 {[%clk 0:02:55]}  exf5 {[%clk 0:02:10]} 14. e6 {[%clk 0:02:41]}  f6 {[%clk 0:02:09]} 15. Nh4 {[%clk 0:02:39]}  g6 {[%clk 0:02:06]} 16. Rc1 {[%clk 0:02:32]}  Bd6 {[%clk 0:02:01]} 17. g4 {[%clk 0:02:26]}  fxg4 {[%clk 0:02:00]} 18. Qxg4 {[%clk 0:02:22]}  Ne5 {[%clk 0:01:59]} 19. Qe2 {[%clk 0:02:19]}  Nxd3 {[%clk 0:01:51]} 20. Qxd3 {[%clk 0:02:20]}  Be5 {[%clk 0:01:50]} 21. Nf3 {[%clk 0:02:11]}  O-O {[%clk 0:01:46]} 22. Nxe5 {[%clk 0:02:02]}  fxe5 {[%clk 0:01:46]} 23. h4 {[%clk 0:01:53]}  d4 {[%clk 0:01:42]} 24. Ne4 {[%clk 0:01:52]}  Bxe4 {[%clk 0:01:42]} 25. Qxe4 {[%clk 0:01:52]}  Qd5 {[%clk 0:01:42]} 26. Qg4 {[%clk 0:01:50]}  Qf3 {[%clk 0:01:40]} 27. Qg5 {[%clk 0:01:45]}  Qf5+ {[%clk 0:01:38]} 28. Ka1 {[%clk 0:01:42]}  Qxg5 {[%clk 0:01:37]} 29. Bxg5 {[%clk 0:01:40]}  Rae8 {[%clk 0:01:37]} 30. h5 {[%clk 0:01:34]}  Rf5 {[%clk 0:01:29]} 31. Rcg1 {[%clk 0:00:59]}  Nd5 {[%clk 0:01:27]} 32. hxg6 {[%clk 0:00:56]}  hxg6 {[%clk 0:01:26]} 33. e7 {[%clk 0:00:42]}  Kf7 {[%clk 0:01:20]} 34. Rh7+ {[%clk 0:00:38]}  Ke6 {[%clk 0:01:20]} 35. Rg7 {[%clk 0:00:36]}  Nxe7 {[%clk 0:01:17]} 36. Bxe7 {[%clk 0:00:35]}  Rxe7 {[%clk 0:01:17]} 37. R7xg6+ {[%clk 0:00:34]}  Rf6 {[%clk 0:01:17]} 0-1


[Site "https://www.chess.com"]

[Event "Titled Tuesday Blitz January 31 Early 2023"]
[White "Yuan, Qingyu"]
[Black "Martynov, Pavel"]
[WhiteFideId "8609772"]
[BlackFideId "4101260"]
[WhiteElo "2373"]
[BlackElo "2414"]
[Result "1-0"]
[Round "11"]
[TimeControl "180+2"]
[Date "2023.01.31"]
[WhiteClock "0:00:38"]
[BlackClock "0:00:05"]

1. e4 {[%clk 0:03:00]}  c5 {[%clk 0:02:59]} 2. Nf3 {[%clk 0:03:01]}  e6 {[%clk 0:03:00]} 3. c3 {[%clk 0:03:01]}  d5 {[%clk 0:02:59]} 4. exd5 {[%clk 0:03:01]}  Qxd5 {[%clk 0:03:00]} 5. d4 {[%clk 0:03:01]}  Nf6 {[%clk 0:03:00]} 6. Na3 {[%clk 0:03:02]}  Nc6 {[%clk 0:02:59]} 7. Be3 {[%clk 0:03:01]}  cxd4 {[%clk 0:02:57]} 8. Nb5 {[%clk 0:03:01]}  Qd7 {[%clk 0:02:57]} 9. Nbxd4 {[%clk 0:02:59]}  Be7 {[%clk 0:02:44]} 10. Bb5 {[%clk 0:02:56]}  Qc7 {[%clk 0:02:41]} 11. Nxc6 {[%clk 0:02:34]}  bxc6 {[%clk 0:02:40]} 12. Bd3 {[%clk 0:02:34]}  O-O {[%clk 0:02:38]} 13. Qc2 {[%clk 0:02:32]}  c5 {[%clk 0:02:36]} 14. O-O {[%clk 0:02:24]}  c4 {[%clk 0:02:29]} 15. Be2 {[%clk 0:02:22]}  Bb7 {[%clk 0:02:29]} 16. Nd2 {[%clk 0:02:09]}  Bd5 {[%clk 0:02:19]} 17. Rfe1 {[%clk 0:01:59]}  Bd6 {[%clk 0:01:49]} 18. h3 {[%clk 0:01:57]}  Rfb8 {[%clk 0:01:32]} 19. Rab1 {[%clk 0:01:50]}  a5 {[%clk 0:01:02]} 20. b3 {[%clk 0:01:43]}  cxb3 {[%clk 0:00:59]} 21. axb3 {[%clk 0:01:44]}  Be5 {[%clk 0:00:48]} 22. c4 {[%clk 0:01:31]}  Bc6 {[%clk 0:00:47]} 23. Bf3 {[%clk 0:01:30]}  h6 {[%clk 0:00:28]} 24. Bxc6 {[%clk 0:01:26]}  Qxc6 {[%clk 0:00:29]} 25. Bxh6 {[%clk 0:01:25]}  Bd6 {[%clk 0:00:21]} 26. Bg5 {[%clk 0:01:21]}  Bb4 {[%clk 0:00:20]} 27. Bxf6 {[%clk 0:01:20]}  gxf6 {[%clk 0:00:21]} 28. Re3 {[%clk 0:01:20]}  a4 {[%clk 0:00:20]} 29. bxa4 {[%clk 0:01:07]}  Bxd2 {[%clk 0:00:19]} 30. Rxb8+ {[%clk 0:01:06]}  Rxb8 {[%clk 0:00:20]} 31. Qxd2 {[%clk 0:01:04]}  Qxc4 {[%clk 0:00:15]} 32. Rg3+ {[%clk 0:01:01]}  Kh7 {[%clk 0:00:14]} 33. Rg4 {[%clk 0:00:52]}  Qd5 {[%clk 0:00:11]} 34. Rh4+ {[%clk 0:00:50]}  Kg8 {[%clk 0:00:10]} 35. Qh6 {[%clk 0:00:38]}  Rb1+ {[%clk 0:00:10]} 36. Kh2 {[%clk 0:00:38]}  Qe5+ {[%clk 0:00:10]} 37. f4 {[%clk 0:00:38]}  Qf5 {[%clk 0:00:05]} 38. Qh8# {[%clk 0:00:38]} 1-0


[Site "https://www.chess.com"]

[Event "Titled Tuesday Blitz January 31 Early 2023"]
[White "Kilic, Eray"]
[Black "Sielecki, Christof"]
[WhiteFideId "44517173"]
[BlackFideId "4620437"]
[WhiteElo "2414"]
[BlackElo "2419"]
[Result "1/2-1/2"]
[Round "11"]
[TimeControl "180+2"]
[Date "2023.01.31"]
[WhiteClock "0:00:08"]
[BlackClock "0:00:10"]

1. e4 {[%clk 0:03:00]}  c5 {[%clk 0:02:58]} 2. Nf3 {[%clk 0:03:00]}  a6 {[%clk 0:02:58]} 3. c4 {[%clk 0:02:58]}  Nc6 {[%clk 0:02:58]} 4. Nc3 {[%clk 0:02:58]}  e5 {[%clk 0:02:58]} 5. d3 {[%clk 0:02:58]}  d6 {[%clk 0:02:58]} 6. Be2 {[%clk 0:02:58]}  Rb8 {[%clk 0:02:58]} 7. O-O {[%clk 0:02:59]}  b5 {[%clk 0:02:58]} 8. cxb5 {[%clk 0:02:57]}  axb5 {[%clk 0:02:58]} 9. Be3 {[%clk 0:02:56]}  Nf6 {[%clk 0:02:55]} 10. a4 {[%clk 0:02:41]}  bxa4 {[%clk 0:02:48]} 11. Qxa4 {[%clk 0:02:41]}  Bd7 {[%clk 0:02:47]} 12. Qc2 {[%clk 0:02:40]}  Be7 {[%clk 0:02:44]} 13. Nd2 {[%clk 0:02:40]}  O-O {[%clk 0:02:37]} 14. Nc4 {[%clk 0:02:40]}  Be6 {[%clk 0:02:26]} 15. f4 {[%clk 0:02:31]}  Nd4 {[%clk 0:02:21]} 16. Bxd4 {[%clk 0:02:26]}  exd4 {[%clk 0:02:17]} 17. Na4 {[%clk 0:02:21]}  d5 {[%clk 0:02:12]} 18. Ne5 {[%clk 0:02:21]}  dxe4 {[%clk 0:01:58]} 19. Nc6 {[%clk 0:02:14]}  Qc7 {[%clk 0:01:55]} 20. Nxb8 {[%clk 0:02:14]}  Rxb8 {[%clk 0:01:55]} 21. dxe4 {[%clk 0:02:09]}  Bb3 {[%clk 0:01:40]} 22. Qb1 {[%clk 0:01:48]}  c4 {[%clk 0:01:40]} 23. e5 {[%clk 0:01:47]}  Nd5 {[%clk 0:01:35]} 24. Qe4 {[%clk 0:01:46]}  Ne3 {[%clk 0:01:29]} 25. Rfc1 {[%clk 0:01:44]}  Rb4 {[%clk 0:00:42]} 26. Kh1 {[%clk 0:00:52]}  g6 {[%clk 0:00:40]} 27. Qxd4 {[%clk 0:00:41]}  Nc2 {[%clk 0:00:36]} 28. Rxc2 {[%clk 0:00:41]}  Bxc2 {[%clk 0:00:37]} 29. Nc3 {[%clk 0:00:42]}  Bc5 {[%clk 0:00:32]} 30. Qd2 {[%clk 0:00:42]}  Bf5 {[%clk 0:00:18]} 31. Nd5 {[%clk 0:00:39]}  Qb7 {[%clk 0:00:16]} 32. Nxb4 {[%clk 0:00:32]}  Bxb4 {[%clk 0:00:17]} 33. Qe3 {[%clk 0:00:31]}  Be4 {[%clk 0:00:16]} 34. Bf3 {[%clk 0:00:31]}  Bxf3 {[%clk 0:00:15]} 35. Qxf3 {[%clk 0:00:31]}  Qb6 {[%clk 0:00:15]} 36. h3 {[%clk 0:00:30]}  Bd2 {[%clk 0:00:14]} 37. Rb1 {[%clk 0:00:24]}  c3 {[%clk 0:00:13]} 38. Qd3 {[%clk 0:00:22]}  Qf2 {[%clk 0:00:13]} 39. Qd8+ {[%clk 0:00:20]}  Kg7 {[%clk 0:00:13]} 40. Qf6+ {[%clk 0:00:21]}  Kh6 {[%clk 0:00:13]} 41. Qg5+ {[%clk 0:00:21]}  Kg7 {[%clk 0:00:13]} 42. bxc3 {[%clk 0:00:21]}  Bxf4 {[%clk 0:00:12]} 43. Qf6+ {[%clk 0:00:21]}  Kh6 {[%clk 0:00:13]} 44. Qd8 {[%clk 0:00:11]}  Qg3 {[%clk 0:00:09]} 45. Qf8+ {[%clk 0:00:10]}  Kh5 {[%clk 0:00:09]} 46. Kg1 {[%clk 0:00:10]}  Be3+ {[%clk 0:00:09]} 47. Kh1 {[%clk 0:00:10]}  Bf4 {[%clk 0:00:10]} 48. Kg1 {[%clk 0:00:08]}  Be3+ {[%clk 0:00:10]} 49. Kh1 {[%clk 0:00:08]}  Bf4 {[%clk 0:00:10]} 1/2-1/2


[Site "https://www.chess.com"]

[Event "Titled Tuesday Blitz January 31 Early 2023"]
[White "Ristic, Nebojsa B"]
[Black "Tactrics"]
[WhiteFideId "935468"]
[WhiteElo "2236"]
[BlackElo "2800"]
[Result "0-1"]
[Round "11"]
[TimeControl "180+2"]
[Date "2023.01.31"]
[WhiteClock "0:00:19"]
[BlackClock "0:00:19"]

1. d4 {[%clk 0:03:00]}  e6 {[%clk 0:02:59]} 2. Bf4 {[%clk 0:03:00]}  b6 {[%clk 0:02:59]} 3. e4 {[%clk 0:02:53]}  Bb7 {[%clk 0:02:58]} 4. Nc3 {[%clk 0:02:52]}  Nf6 {[%clk 0:02:58]} 5. Bd3 {[%clk 0:02:52]}  d5 {[%clk 0:02:57]} 6. e5 {[%clk 0:02:47]}  Ne4 {[%clk 0:02:57]} 7. Nge2 {[%clk 0:02:34]}  Nxc3 {[%clk 0:02:51]} 8. Nxc3 {[%clk 0:02:32]}  Nc6 {[%clk 0:02:50]} 9. Ne2 {[%clk 0:02:11]}  Nb4 {[%clk 0:02:46]} 10. Bb5+ {[%clk 0:01:52]}  Bc6 {[%clk 0:02:46]} 11. Bxc6+ {[%clk 0:01:51]}  Nxc6 {[%clk 0:02:47]} 12. Rc1 {[%clk 0:01:45]}  Qd7 {[%clk 0:02:39]} 13. O-O {[%clk 0:01:44]}  Be7 {[%clk 0:02:36]} 14. Ng3 {[%clk 0:01:35]}  g6 {[%clk 0:02:30]} 15. Bh6 {[%clk 0:01:31]}  Na5 {[%clk 0:02:25]} 16. Qd3 {[%clk 0:01:26]}  c5 {[%clk 0:02:23]} 17. c3 {[%clk 0:01:24]}  Nc6 {[%clk 0:02:21]} 18. f4 {[%clk 0:01:13]}  a5 {[%clk 0:02:09]} 19. Kh1 {[%clk 0:01:03]}  a4 {[%clk 0:02:02]} 20. Bg5 {[%clk 0:00:37]}  h5 {[%clk 0:01:58]} 21. Ne2 {[%clk 0:00:32]}  c4 {[%clk 0:01:51]} 22. Qc2 {[%clk 0:00:29]}  a3 {[%clk 0:01:51]} 23. b3 {[%clk 0:00:27]}  cxb3 {[%clk 0:01:47]} 24. Qxb3 {[%clk 0:00:28]}  O-O {[%clk 0:01:38]} 25. Bxe7 {[%clk 0:00:27]}  Nxe7 {[%clk 0:01:29]} 26. g4 {[%clk 0:00:26]}  hxg4 {[%clk 0:01:27]} 27. Rg1 {[%clk 0:00:26]}  Kg7 {[%clk 0:01:24]} 28. Rxg4 {[%clk 0:00:26]}  Rh8 {[%clk 0:01:25]} 29. Rcg1 {[%clk 0:00:25]}  Nf5 {[%clk 0:01:16]} 30. Ng3 {[%clk 0:00:24]}  Ne3 {[%clk 0:01:15]} 31. Rg5 {[%clk 0:00:24]}  Qa4 {[%clk 0:00:36]} 32. Qb1 {[%clk 0:00:15]}  Qc2 {[%clk 0:00:35]} 33. Qxc2 {[%clk 0:00:14]}  Nxc2 {[%clk 0:00:36]} 34. Nh5+ {[%clk 0:00:15]}  Kf8 {[%clk 0:00:33]} 35. Nf6 {[%clk 0:00:15]}  Ke7 {[%clk 0:00:27]} 36. Rb1 {[%clk 0:00:15]}  Rab8 {[%clk 0:00:25]} 37. Rb3 {[%clk 0:00:14]}  Rh3 {[%clk 0:00:20]} 38. Rg2 {[%clk 0:00:13]}  Ne3 {[%clk 0:00:18]} 39. Rg3 {[%clk 0:00:14]}  Rxg3 {[%clk 0:00:17]} 40. hxg3 {[%clk 0:00:14]}  Nc4 {[%clk 0:00:18]} 41. Kg2 {[%clk 0:00:14]}  Kd8 {[%clk 0:00:16]} 42. Kf3 {[%clk 0:00:13]}  Nd2+ {[%clk 0:00:16]} 43. Ke2 {[%clk 0:00:12]}  Nxb3 {[%clk 0:00:17]} 44. axb3 {[%clk 0:00:13]}  a2 {[%clk 0:00:17]} 45. Nh7 {[%clk 0:00:13]}  a1=Q {[%clk 0:00:17]} 46. Ng5 {[%clk 0:00:14]}  Ke7 {[%clk 0:00:17]} 47. Kf3 {[%clk 0:00:14]}  Ra8 {[%clk 0:00:18]} 48. Kg4 {[%clk 0:00:15]}  Qd1+ {[%clk 0:00:18]} 49. Kh3 {[%clk 0:00:16]}  Rh8+ {[%clk 0:00:18]} 50. Kg2 {[%clk 0:00:17]}  Qh1+ {[%clk 0:00:17]} 51. Kf2 {[%clk 0:00:17]}  Rh2+ {[%clk 0:00:18]} 52. Ke3 {[%clk 0:00:18]}  Qe1+ {[%clk 0:00:19]} 53. Kd3 {[%clk 0:00:19]}  Qe2# {[%clk 0:00:19]} 0-1


[Site "https://www.chess.com"]

[Event "Titled Tuesday Blitz January 31 Early 2023"]
[White "Girya, Olga"]
[Black "Cunha, Lucas Aguiar"]
[WhiteFideId "4195752"]
[BlackFideId "2125404"]
[WhiteElo "2402"]
[BlackElo "2309"]
[Result "0-1"]
[Round "11"]
[TimeControl "180+2"]
[Date "2023.01.31"]
[WhiteClock "0:00:01"]
[BlackClock "0:00:42"]

1. d4 {[%clk 0:02:14]}  Nf6 {[%clk 0:02:59]} 2. Nf3 {[%clk 0:02:13]}  c5 {[%clk 0:02:59]} 3. d5 {[%clk 0:02:12]}  b5 {[%clk 0:02:59]} 4. e4 {[%clk 0:02:10]}  Nxe4 {[%clk 0:02:59]} 5. Bd3 {[%clk 0:02:03]}  f5 {[%clk 0:02:57]} 6. Bxe4 {[%clk 0:01:59]}  fxe4 {[%clk 0:02:57]} 7. Ng5 {[%clk 0:01:57]}  Qb6 {[%clk 0:02:54]} 8. Nxe4 {[%clk 0:01:46]}  Qg6 {[%clk 0:02:54]} 9. Qf3 {[%clk 0:01:46]}  Bb7 {[%clk 0:02:51]} 10. c4 {[%clk 0:01:44]}  Na6 {[%clk 0:02:46]} 11. Nbc3 {[%clk 0:01:41]}  Nb4 {[%clk 0:02:39]} 12. Nxb5 {[%clk 0:01:26]}  Nc2+ {[%clk 0:02:29]} 13. Kd1 {[%clk 0:01:22]}  Nxa1 {[%clk 0:02:29]} 14. Nc7+ {[%clk 0:01:20]}  Kd8 {[%clk 0:02:30]} 15. Nxa8 {[%clk 0:01:21]}  Bxa8 {[%clk 0:02:31]} 16. Be3 {[%clk 0:01:15]}  e6 {[%clk 0:02:27]} 17. Qf4 {[%clk 0:00:45]}  Kc8 {[%clk 0:02:12]} 18. Nd6+ {[%clk 0:00:09]}  Bxd6 {[%clk 0:02:11]} 19. Qxd6 {[%clk 0:00:09]}  Qd3+ {[%clk 0:01:56]} 20. Bd2 {[%clk 0:00:09]}  Qxc4 {[%clk 0:01:40]} 21. b3 {[%clk 0:00:09]}  Qxd5 {[%clk 0:01:27]} 22. Qa6+ {[%clk 0:00:09]}  Bb7 {[%clk 0:01:26]} 23. Qxa7 {[%clk 0:00:07]}  Qxg2 {[%clk 0:01:16]} 24. Qxc5+ {[%clk 0:00:05]}  Bc6 {[%clk 0:01:17]} 25. Re1 {[%clk 0:00:04]}  Qf3+ {[%clk 0:00:58]} 26. Kc1 {[%clk 0:00:04]}  Rf8 {[%clk 0:00:55]} 27. Kb2 {[%clk 0:00:03]}  Qxf2 {[%clk 0:00:52]} 28. Qxf2 {[%clk 0:00:02]}  Rxf2 {[%clk 0:00:53]} 29. Kc3 {[%clk 0:00:01]}  Nxb3 {[%clk 0:00:49]} 30. axb3 {[%clk 0:00:01]}  Rxh2 {[%clk 0:00:49]} 31. Bf4 {[%clk 0:00:01]}  Rf2 {[%clk 0:00:46]} 32. Be5 {[%clk 0:00:01]}  Rg2 {[%clk 0:00:44]} 33. Rf1 {[%clk 0:00:01]}  h5 {[%clk 0:00:42]} 0-1


[Site "https://www.chess.com"]